[Event "11th LCC Rapid 2019"]
[Site "London"]
[Date "2019.12.07"]
[Round "3.9"]
[White "Johnson, Daniel"]
[Black "Harakis, Alexis M"]
[Result "1-0"]
[WhiteElo "2144"]
[BlackElo "2267"]
[PlyCount "75"]
[EventDate "2019.12.08"]
[EventType "swiss"]
[EventCountry "ENG"]
[TimeControl "15+10"]

1. d4 {[%emt 0:17:12]} Nf6 {[%emt 0:00:10]} 2. c4 {[%emt 0:00:01]} e6 {[%emt 0:00:10]} 3. Nc3 {[%emt 0:00:12]} d5 {[%emt 0:00:07]} 4. cxd5 {[%emt 0:00:02]} exd5 5. Bg5 {[%emt 0:00:02]} c6 {[%emt 0:00:01]} 6. e3 {[%emt 0:00:09]} Be7 {[%emt 0:00:01]} 7. Qc2 {[%emt 0:00:01]} Nbd7 {[%emt 0:00:05]} 8. Bd3 {[%emt 0:00:02]} Nh5 {[%emt 0:00:03]} 9. Bxe7 {[%emt 0:00:06]} Qxe7 {[%emt 0:00:02]} 10. Nge2 {[%emt 0:00:01]} g6 {[%emt 0:00:11]} 11. O-O {[%emt 0:00:24]} O-O {[%emt 0:00:15]} 12. Rab1 {[%emt 0:00:18]} Nb6 {[%emt 0:00:09]} 13. b4 {[%emt 0:01:13]} a6 {[%emt 0:00:01]} 14. Na4 {[%emt 0:00:35]} Nxa4 {[%emt 0:00:05]} 15. Qxa4 {[%emt 0:00:02]} Ng7 {[%emt 0:00:01]} 16. Qc2 {[%emt 0:00:25]} Bf5 {[%emt 0:00:02]} 17. a4 {[%emt 0:00:07]} Bxd3 {[%emt 0:01:12]} 18. Qxd3 {[%emt 0:00:02]} b5 19. Rfc1 {[%emt 0:00:15]} Rfc8 {[%emt 0:00:18]} 20. axb5 {[%emt 0:01:04]} axb5 {[%emt 0:00:02]} 21. Rc5 {[%emt 0:00:02]} Ne6 {[%emt 0:01:20]} 22. Rcc1 {[%emt 0:01:03]} Ng5 {[%emt 0:01:23]} 23. Nc3 {[%emt 0:02:11]} Qd7 {[%emt 0:02:17]} 24. h4 {[%emt 0:00:31]} Ne6 {[%emt 0:00:02]} 25. Rc2 {[%emt 0:01:00]} Ng7 {[%emt 0:02:09]} 26. e4 {[%emt 0:01:09]} Ne6 {[%emt 0:01:08]} 27. e5 {[%emt 0:01:09]} Nf4 {[%emt 0:00:44]} 28. Qf3 {[%emt 0:00:48]} Qf5 {[%emt 0:00:02]} 29. Rbc1 {[%emt 0:00:01]} Re8 {[%emt 0:02:51]} 30. g4 {[%emt 0:00:37]} Qd3 {[%emt 0:03:27]} 31. Qxf4 {[%emt 0:00:02]} Ra3 {[%emt 0:00:01]} 32. Ne2 {[%emt 0:01:46]} Qh3 {[%emt 0:00:16]} 33. Rc3 {[%emt 0:00:53]} Rxc3 {[%emt 0:00:05]} 34. Rxc3 {[%emt 0:00:03]} Qxh4 {[%emt 0:00:01]} 35. Rxc6 {[%emt 0:00:21]} Ra8 {[%emt 0:00:05]} 36. Rc7 {[%emt 0:00:28]} f6 {[%emt 0:01:23]} 37. exf6 {[%emt 0:00:32]} Rf8 {[%emt 0:00:24]} 38. g5 {[%emt 0:00:51]} 1-0

[Event "11th LCC Rapid 2019"]
[Site "London"]
[Date "2019.12.07"]
[Round "3.10"]
[White "Willmoth, Robert F"]
[Black "Ilfeld, Etan"]
[Result "0-1"]
[WhiteElo "2111"]
[BlackElo "2188"]
[PlyCount "68"]
[EventDate "2019.12.08"]
[EventType "swiss"]
[EventCountry "ENG"]
[TimeControl "15+10"]
[WhiteClock "0:00:23"]
[BlackClock "0:01:21"]

1. d4 {[%emt 0:00:00]} d5 {[%emt 0:00:00]} 2. Nf3 {[%emt 0:00:00]} e6 {[%emt 0:00:00]} 3. b3 {[%emt 0:00:00]} Nf6 {[%emt 0:00:00]} 4. Bb2 {[%emt 0:00:00]} Be7 {[%emt 0:00:00]} 5. Nbd2 {[%emt 0:00:00]} O-O {[%emt 0:00:00]} 6. e3 {[%emt 0:00:00]} b6 {[%emt 0:00:00]} 7. Bd3 {[%emt 0:00:00]} Bb7 {[%emt 0:00:00]} 8. O-O {[%emt 0:00:00]} c5 {[%emt 0:00:00]} 9. Ne5 {[%emt 0:02:41]} Nc6 {[%emt 0:00:00]} 10. a3 {[%emt 0:00:00]} Qc7 {[%emt 0:00:00]} 11. f4 {[%emt 0:00:00]} cxd4 {[%emt 0:00:00]} 12. exd4 {[%emt 0:00:00]} g6 {[%emt 0:00:00]} 13. g4 {[%emt 0:00:00]} Bd6 {[%emt 0:00:00]} 14. Qf3 {[%emt 0:00:00]} Ne7 {[%emt 0:00:00]} 15. Rae1 {[%emt 0:00:00]} Bc8 {[%emt 0:00:00]} 16. h4 {[%emt 0:00:00]} h5 {[%emt 0:00:00]} 17. gxh5 {[%emt 0:00:00]} Nxh5 {[%emt 0:00:00]} 18. Re2 {[%emt 0:00:00]} Kg7 {[%emt 0:00:37]} 19. Rg2 {[%emt 0:00:00]} Rh8 {[%emt 0:00:09]} 20. Kf2 {[%emt 0:00:00]} Nf5 {[%emt 0:00:27]} 21. Bxf5 {[%emt 0:00:00]} exf5 {[%emt 0:00:02]} 22. c3 {[%emt 0:00:00]} Be6 {[%emt 0:01:12]} 23. Rfg1 {[%emt 0:00:00]} Rh6 {[%emt 0:00:18]} 24. Qe3 {[%emt 0:00:00]} Qe7 {[%emt 0:00:25]} 25. Ndf3 {[%emt 0:00:00]} Rah8 {[%emt 0:00:29]} 26. Ng5 {[%emt 0:00:00]} Nf6 {[%emt 0:00:19]} 27. Nxg6 {[%emt 0:00:00]} Rxg6 {[%emt 0:00:28]} 28. Nxe6+ {[%emt 0:00:00]} Kh6 {[%emt 0:00:13]} 29. Rxg6+ {[%emt 0:00:00]} fxg6 {[%emt 0:00:01]} 30. Kf3 {[%emt 0:00:00]} Ng4 {[%emt 0:00:04]} 31. Qe2 {[%emt 0:00:00]} Re8 {[%emt 0:00:21]} 32. Re1 {[%emt 0:00:31]} Qxh4 {[%emt 0:00:11]} 33. Rg1 {[%emt 0:00:49]} Rxe6 {[%emt 0:00:10]} 34. Qxe6 {[%emt 0:00:33]} Qf2# {[%emt 0:00:06]} 0-1

[Event "11th LCC Rapid 2019"]
[Site "London"]
[Date "2019.12.07"]
[Round "3.11"]
[White "Myall, Ivan J"]
[Black "Lucchi, Lorenzo"]
[Result "1-0"]
[WhiteElo "1994"]
[BlackElo "2089"]
[PlyCount "163"]
[EventDate "2019.12.08"]
[EventType "swiss"]
[EventCountry "ENG"]
[TimeControl "15+10"]
[WhiteClock "0:04:39"]
[BlackClock "0:03:08"]

1. e4 {[%emt 0:00:00]} c5 {[%emt 0:00:00]} 2. c3 {[%emt 0:00:00]} e5 {[%emt 0:00:00]} 3. Nf3 {[%emt 0:00:00]} Nc6 {[%emt 0:00:00]} 4. Bc4 {[%emt 0:00:00]} Qc7 {[%emt 0:00:00]} 5. O-O {[%emt 0:00:00]} Nf6 {[%emt 0:00:00]} 6. Re1 {[%emt 0:00:00]} Be7 {[%emt 0:00:00]} 7. a4 {[%emt 0:00:00]} Na5 {[%emt 0:00:00]} 8. Ba2 {[%emt 0:00:00]} c4 {[%emt 0:00:00]} 9. d3 {[%emt 0:00:00]} cxd3 {[%emt 0:00:00]} 10. Qxd3 {[%emt 0:00:00]} O-O {[%emt 0:00:00]} 11. Bg5 {[%emt 0:00:00]} d6 {[%emt 0:00:00]} 12. b4 {[%emt 0:00:00]} Nc6 {[%emt 0:00:00]} 13. a5 {[%emt 0:00:00]} h6 {[%emt 0:00:00]} 14. Bh4 {[%emt 0:00:00]} Be6 {[%emt 0:00:00]} 15. Na3 {[%emt 0:00:00]} Rac8 {[%emt 0:00:00]} 16. Bxe6 {[%emt 0:00:00]} fxe6 {[%emt 0:00:00]} 17. Nb5 {[%emt 0:00:00]} Qd7 {[%emt 0:00:00]} 18. Rad1 {[%emt 0:00:00]} a6 {[%emt 0:00:00]} 19. Bxf6 {[%emt 0:00:00]} Rxf6 {[%emt 0:00:00]} 20. Na3 {[%emt 0:00:00]} Qc7 {[%emt 0:00:00]} 21. Nb1 {[%emt 0:00:00]} Nd8 {[%emt 0:00:00]} 22. Rc1 {[%emt 0:00:00]} Nf7 {[%emt 0:00:00]} 23. Qe3 {[%emt 0:00:00]} Nh8 {[%emt 0:00:00]} 24. g3 {[%emt 0:00:00]} Nf7 {[%emt 0:00:00]} 25. Rcd1 {[%emt 0:00:00]} Nd8 {[%emt 0:00:00]} 26. Nh4 {[%emt 0:00:00]} Nc6 {[%emt 0:00:00]} 27. Ng2 {[%emt 0:00:00]} Na7 {[%emt 0:00:00]} 28. Qxa7 {[%emt 0:00:00]} Rcf8 {[%emt 0:00:00]} 29. Rf1 {[%emt 0:00:00]} R8f7 {[%emt 0:00:00]} 30. Qb6 {[%emt 0:00:00]} Qc8 {[%emt 0:00:00]} 31. f4 {[%emt 0:00:00]} Qc4 {[%emt 0:00:00]} 32. Qe3 {[%emt 0:00:00]} g5 {[%emt 0:00:00]} 33. Qd3 {[%emt 0:00:00]} Qxd3 {[%emt 0:00:00]} 34. Rxd3 {[%emt 0:00:00]} exf4 {[%emt 0:00:00]} 35. gxf4 {[%emt 0:00:26]} gxf4 {[%emt 0:00:00]} 36. Ne1 {[%emt 0:01:10]} Rg6+ {[%emt 0:00:00]} 37. Kh1 {[%emt 0:00:06]} Kh7 {[%emt 0:00:00]} 38. Rdf3 {[%emt 0:00:21]} e5 {[%emt 0:00:00]} 39. Nd2 {[%emt 0:00:14]} Rg8 {[%emt 0:00:00]} 40. Rh3 {[%emt 0:00:35]} Rc8 {[%emt 0:00:00]} 41. Nef3 {[%emt 0:00:19]} Bd8 {[%emt 0:00:00]} 42. c4 {[%emt 0:00:12]} Be7 {[%emt 0:00:00]} 43. c5 {[%emt 0:00:10]} dxc5 {[%emt 0:00:00]} 44. Nxe5 {[%emt 0:00:01]} Rg7 {[%emt 0:00:00]} 45. bxc5 {[%emt 0:00:24]} Bxc5 {[%emt 0:00:00]} 46. Ndf3 {[%emt 0:00:39]} Be3 {[%emt 0:00:00]} 47. Nf7 {[%emt 0:00:23]} Rg6 {[%emt 0:00:27]} 48. e5 {[%emt 0:00:21]} Rc5 {[%emt 0:01:05]} 49. N7g5+ {[%emt 0:01:24]} Kg7 {[%emt 0:00:16]} 50. Ne4 {[%emt 0:00:03]} Rxa5 {[%emt 0:00:11]} 51. Rd1 {[%emt 0:00:11]} Kf8 {[%emt 0:00:38]} 52. Rh5 {[%emt 0:00:10]} Ra2 {[%emt 0:00:35]} 53. Rf5+ {[%emt 0:00:18]} Ke7 {[%emt 0:00:09]} 54. Rf6 {[%emt 0:00:25]} Rgg2 {[%emt 0:00:28]} 55. Rxh6 {[%emt 0:00:09]} Rg8 {[%emt 0:01:00]} 56. Rh7+ {[%emt 0:00:19]} Ke6 {[%emt 0:00:16]} 57. Neg5+ {[%emt 0:00:12]} Kf5 {[%emt 0:00:17]} 58. e6 {[%emt 0:00:11]} Re2 {[%emt 0:00:37]} 59. Rd5+ {[%emt 0:00:08]} Kf6 {[%emt 0:00:02]} 60. Rf7+ {[%emt 0:00:09]} Kg6 {[%emt 0:00:02]} 61. Nh4+ {[%emt 0:00:17]} Kh5 {[%emt 0:00:23]} 62. Ngf3+ {[%emt 0:00:08]} Kg4 {[%emt 0:00:07]} 63. Rd1 {[%emt 0:00:18]} Kh3 {[%emt 0:00:55]} 64. e7 {[%emt 0:00:10]} Bc5 {[%emt 0:00:30]} 65. Rf8 {[%emt 0:00:11]} Rxf8 {[%emt 0:00:21]} 66. exf8=Q {[%emt 0:00:03]} Bxf8 {[%emt 0:00:02]} 67. Ng1+ {[%emt 0:00:01]} Kxh4 {[%emt 0:00:04]} 68. Nxe2 {[%emt 0:00:01]} Kg4 {[%emt 0:00:09]} 69. Nxf4 {[%emt 0:00:02]} Kxf4 {[%emt 0:00:01]} 70. Rf1+ {[%emt 0:00:01]} Ke4 {[%emt 0:00:05]} 71. Rxf8 {[%emt 0:00:01]} Kd5 {[%emt 0:00:02]} 72. Kg2 {[%emt 0:00:05]} a5 {[%emt 0:00:01]} 73. Kf3 {[%emt 0:00:02]} a4 {[%emt 0:00:01]} 74. Ke3 {[%emt 0:00:03]} Kc4 {[%emt 0:00:01]} 75. Kd2 {[%emt 0:00:02]} b5 {[%emt 0:00:03]} 76. Kc2 {[%emt 0:00:02]} Kb4 {[%emt 0:00:01]} 77. Rf4+ {[%emt 0:00:03]} Ka3 {[%emt 0:00:01]} 78. h4 {[%emt 0:00:02]} b4 {[%emt 0:00:03]} 79. h5 {[%emt 0:00:07]} b3+ {[%emt 0:00:11]} 80. Kb1 {[%emt 0:00:02]} b2 {[%emt 0:00:01]} 81. Rxa4+ {[%emt 0:00:03]} Kxa4 {[%emt 0:00:01]} 82. h6 {[%emt 0:00:03]} 1-0

[Event "11th LCC Rapid 2019"]
[Site "London"]
[Date "2019.12.07"]
[Round "3.12"]
[White "Akeya-Price, Robert"]
[Black "Eames, Robert S"]
[Result "0-1"]
[WhiteElo "1880"]
[BlackElo "2150"]
[PlyCount "74"]
[EventDate "2019.12.08"]
[EventType "swiss"]
[EventCountry "ENG"]
[TimeControl "15+10"]
[WhiteClock "0:06:33"]
[BlackClock "0:00:43"]

1. d4 {[%emt 0:00:00]} Nf6 {[%emt 0:00:00]} 2. c4 {[%emt 0:00:00]} c5 {[%emt 0:00:00]} 3. d5 {[%emt 0:00:00]} b5 {[%emt 0:00:00]} 4. cxb5 {[%emt 0:00:00]} a6 {[%emt 0:00:00]} 5. bxa6 {[%emt 0:00:00]} g6 {[%emt 0:00:00]} 6. Nc3 {[%emt 0:00:00]} Bg7 {[%emt 0:00:00]} 7. Nf3 {[%emt 0:00:00]} O-O {[%emt 0:00:00]} 8. g3 {[%emt 0:00:00]} d6 {[%emt 0:00:00]} 9. Bg2 {[%emt 0:00:00]} Bxa6 {[%emt 0:00:00]} 10. Qc2 {[%emt 0:00:00]} Nbd7 {[%emt 0:00:00]} 11. O-O {[%emt 0:00:00]} Nb6 {[%emt 0:00:00]} 12. Rd1 {[%emt 0:00:00]} Ng4 {[%emt 0:00:00]} 13. h3 {[%emt 0:00:00]} Ne5 {[%emt 0:00:00]} 14. Nxe5 {[%emt 0:00:00]} Bxe5 {[%emt 0:00:00]} 15. Rb1 {[%emt 0:00:00]} Nc4 {[%emt 0:00:00]} 16. b3 {[%emt 0:00:00]} Qa5 {[%emt 0:00:00]} 17. Na4 {[%emt 0:00:00]} Bb5 {[%emt 0:00:00]} 18. e4 {[%emt 0:00:00]} Bxa4 {[%emt 0:00:00]} 19. Qxc4 {[%emt 0:00:00]} Bb5 {[%emt 0:00:00]} 20. Qc2 {[%emt 0:00:00]} Qxa2 {[%emt 0:00:00]} 21. Qxa2 {[%emt 0:00:00]} Rxa2 {[%emt 0:00:00]} 22. Be3 {[%emt 0:00:00]} Rfa8 {[%emt 0:00:00]} 23. Bf1 {[%emt 0:00:00]} Bxf1 {[%emt 0:00:00]} 24. Kxf1 {[%emt 0:00:00]} Kg7 {[%emt 0:00:00]} 25. Rdc1 {[%emt 0:00:00]} Rb8 {[%emt 0:00:00]} 26. Rc4 {[%emt 0:00:00]} Rb2 {[%emt 0:00:00]} 27. Rxb2 {[%emt 0:00:00]} Bxb2 {[%emt 0:00:00]} 28. b4 {[%emt 0:00:00]} cxb4 {[%emt 0:00:00]} 29. Ke2 {[%emt 0:00:00]} b3 {[%emt 0:00:00]} 30. Kd3 {[%emt 0:00:52]} Ba3 {[%emt 0:00:00]} 31. Bd4+ {[%emt 0:00:17]} f6 {[%emt 0:00:00]} 32. Rc7 {[%emt 0:01:13]} Kf7 {[%emt 0:00:00]} 33. Ra7 {[%emt 0:02:25]} b2 {[%emt 0:00:00]} 34. Bxb2 {[%emt 0:00:05]} Bxb2 {[%emt 0:00:00]} 35. Ke3 {[%emt 0:00:17]} Rb3+ {[%emt 0:00:00]} 36. Kf4 {[%emt 0:00:24]} h5 {[%emt 0:00:00]} 37. g4 {[%emt 0:00:09]} Be5# {[%emt 0:00:00]} 0-1

[Event "11th LCC Rapid 2019"]
[Site "London"]
[Date "2019.12.07"]
[Round "3.13"]
[White "Dupuis, Denis K"]
[Black "Cordes, Hans-Joerg"]
[Result "0-1"]
[WhiteElo "1599"]
[BlackElo "2207"]
[PlyCount "60"]
[EventDate "2019.12.08"]
[EventType "swiss"]
[EventCountry "ENG"]
[TimeControl "15+10"]

1. e4 {[%emt 0:26:35]} e6 {[%emt 0:00:02]} 2. d4 {[%emt 0:00:03]} d5 {[%emt 0:00:02]} 3. exd5 {[%emt 0:00:03]} exd5 {[%emt 0:00:02]} 4. Nf3 {[%emt 0:00:02]} Nc6 {[%emt 0:00:03]} 5. Bb5 {[%emt 0:00:19]} Bd6 {[%emt 0:00:04]} 6. c4 {[%emt 0:00:08]} a6 {[%emt 0:00:06]} 7. Bxc6+ {[%emt 0:00:03]} bxc6 {[%emt 0:00:02]} 8. c5 {[%emt 0:00:02]} Be7 {[%emt 0:00:02]} 9. O-O {[%emt 0:00:11]} Bf6 {[%emt 0:01:08]} 10. Re1+ {[%emt 0:00:34]} Ne7 {[%emt 0:00:02]} 11. Bf4 {[%emt 0:00:04]} O-O {[%emt 0:00:08]} 12. Nbd2 {[%emt 0:00:38]} Rb8 {[%emt 0:01:22]} 13. Qc2 {[%emt 0:00:54]} Bf5 {[%emt 0:00:10]} 14. Qc3 {[%emt 0:00:11]} h6 {[%emt 0:00:42]} 15. Ne5 {[%emt 0:00:34]} g5 {[%emt 0:00:13]} 16. Bg3 {[%emt 0:00:10]} Bg7 {[%emt 0:00:11]} 17. b3 {[%emt 0:00:42]} f6 {[%emt 0:00:12]} 18. Nef3 {[%emt 0:00:25]} Qd7 {[%emt 0:00:03]} 19. Qa5 {[%emt 0:00:26]} Rb7 {[%emt 0:01:23]} 20. Qxa6 {[%emt 0:00:15]} Rfb8 {[%emt 0:01:57]} 21. Qe2 {[%emt 0:00:47]} Ng6 {[%emt 0:00:03]} 22. Rac1 {[%emt 0:02:34]} h5 {[%emt 0:00:05]} 23. h4 {[%emt 0:01:47]} g4 {[%emt 0:01:31]} 24. Nh2 {[%emt 0:00:04]} Bh6 {[%emt 0:00:11]} 25. Nhf1 {[%emt 0:00:55]} Rb4 {[%emt 0:00:11]} 26. Ne3 {[%emt 0:01:15]} Rxd4 {[%emt 0:00:31]} 27. Nxf5 {[%emt 0:00:07]} Qxf5 {[%emt 0:00:01]} 28. Red1 {[%emt 0:00:11]} Kf7 {[%emt 0:01:00]} 29. Bxc7 {[%emt 0:01:01]} Re8 {[%emt 0:00:08]} 30. Qf1 {[%emt 0:00:01]} Bxd2 {[%emt 0:00:35]} 0-1

[Event "11th LCC Rapid 2019"]
[Site "London"]
[Date "2019.12.07"]
[Round "3.14"]
[White "Conway, Paul Bernard"]
[Black "Richardson, John R"]
[Result "0-1"]
[WhiteElo "1837"]
[BlackElo "2241"]
[PlyCount "62"]
[EventDate "2019.12.08"]
[EventType "swiss"]
[EventCountry "ENG"]
[TimeControl "15+10"]

1. e4 {[%emt 0:15:24]} c6 2. d4 {[%emt 0:00:06]} d5 {[%emt 0:00:01]} 3. exd5 {[%emt 0:00:02]} cxd5 4. Bd3 {[%emt 0:00:10]} Nc6 {[%emt 0:00:03]} 5. c3 {[%emt 0:00:04]} Qc7 {[%emt 0:00:03]} 6. h3 {[%emt 0:00:05]} Nf6 {[%emt 0:01:22]} 7. Nf3 {[%emt 0:00:15]} g6 {[%emt 0:00:15]} 8. Qc2 {[%emt 0:00:28]} Bg7 {[%emt 0:00:03]} 9. O-O {[%emt 0:00:22]} O-O {[%emt 0:00:01]} 10. Re1 {[%emt 0:00:06]} Bd7 {[%emt 0:01:14]} 11. Nbd2 {[%emt 0:00:57]} Rac8 12. a3 {[%emt 0:00:08]} Nh5 {[%emt 0:00:43]} 13. Nf1 {[%emt 0:01:16]} e5 {[%emt 0:01:55]} 14. dxe5 {[%emt 0:00:34]} Nxe5 {[%emt 0:00:02]} 15. Nxe5 {[%emt 0:01:07]} Bxe5 {[%emt 0:00:01]} 16. Bh6 {[%emt 0:00:56]} Rfe8 {[%emt 0:00:02]} 17. Rad1 {[%emt 0:01:37]} d4 {[%emt 0:03:37]} 18. c4 {[%emt 0:01:49]} b5 {[%emt 0:00:10]} 19. Rc1 {[%emt 0:00:45]} bxc4 {[%emt 0:01:42]} 20. Qxc4 {[%emt 0:01:00]} Qd6 {[%emt 0:02:41]} 21. Qa6 {[%emt 0:01:52]} Rc6 {[%emt 0:00:34]} 22. Qxa7 {[%emt 0:01:09]} Rxc1 {[%emt 0:00:42]} 23. Rxc1 {[%emt 0:00:02]} Nf4 {[%emt 0:00:05]} 24. Bxf4 {[%emt 0:00:39]} Bxf4 25. Rc4 {[%emt 0:01:03]} Be5 {[%emt 0:00:11]} 26. a4 {[%emt 0:00:43]} Be6 27. Rc5 {[%emt 0:00:38]} Rb8 {[%emt 0:00:03]} 28. Rb5 {[%emt 0:00:45]} Rc8 {[%emt 0:00:10]} 29. b4 {[%emt 0:00:48]} Rc3 {[%emt 0:00:17]} 30. Be4 {[%emt 0:00:23]} Rc1 {[%emt 0:00:26]} 31. Rc5 {[%emt 0:00:02]} Bh2+ {[%emt 0:00:04]} 0-1

[Event "11th LCC Rapid 2019"]
[Site "London"]
[Date "2019.12.07"]
[Round "3.15"]
[White "Brozel, Sacha"]
[Black "Clarke, Connor"]
[Result "1-0"]
[WhiteElo "2188"]
[BlackElo "1704"]
[PlyCount "95"]
[EventDate "2019.12.08"]
[EventType "swiss"]
[EventCountry "ENG"]
[TimeControl "15+10"]
[WhiteClock "0:01:15"]
[BlackClock "0:04:32"]

1. g3 {[%emt 0:00:00]} Nf6 {[%emt 0:00:00]} 2. Bg2 {[%emt 0:00:00]} d5 {[%emt 0:00:00]} 3. Nf3 {[%emt 0:00:00]} c5 {[%emt 0:00:00]} 4. O-O {[%emt 0:00:00]} e6 {[%emt 0:00:00]} 5. c4 {[%emt 0:00:00]} Be7 {[%emt 0:00:00]} 6. d4 {[%emt 0:00:00]} dxc4 {[%emt 0:00:00]} 7. dxc5 {[%emt 0:00:00]} O-O {[%emt 0:00:00]} 8. Qc2 {[%emt 0:00:00]} Bxc5 {[%emt 0:00:00]} 9. Nbd2 {[%emt 0:00:00]} Nc6 {[%emt 0:00:00]} 10. Nxc4 {[%emt 0:00:00]} Nb4 {[%emt 0:00:00]} 11. Qb1 {[%emt 0:00:00]} Qc7 {[%emt 0:00:00]} 12. b3 {[%emt 0:00:00]} b5 {[%emt 0:00:00]} 13. Bf4 {[%emt 0:00:00]} Qe7 {[%emt 0:00:00]} 14. Nfe5 {[%emt 0:00:00]} Bb7 {[%emt 0:00:00]} 15. a3 {[%emt 0:00:00]} Bxg2 {[%emt 0:00:00]} 16. Kxg2 {[%emt 0:00:00]} Qb7+ {[%emt 0:00:00]} 17. Nf3 {[%emt 0:00:00]} bxc4 {[%emt 0:00:00]} 18. axb4 {[%emt 0:00:00]} Qxb4 {[%emt 0:00:00]} 19. bxc4 {[%emt 0:00:00]} Qxc4 {[%emt 0:00:00]} 20. Rc1 {[%emt 0:00:00]} Qb4 {[%emt 0:00:00]} 21. Ne5 {[%emt 0:00:00]} Qxb1 {[%emt 0:00:00]} 22. Raxb1 {[%emt 0:00:00]} Bd6 {[%emt 0:00:00]} 23. Rb7 {[%emt 0:00:00]} g5 {[%emt 0:00:00]} 24. Nxf7 {[%emt 0:00:37]} Rxf7 {[%emt 0:00:32]} 25. Rxf7 {[%emt 0:00:02]} Bxf4 {[%emt 0:00:25]} 26. gxf4 {[%emt 0:00:19]} Kxf7 {[%emt 0:00:04]} 27. fxg5 {[%emt 0:00:03]} Nd5 {[%emt 0:00:07]} 28. e4 {[%emt 0:00:01]} Ne7 {[%emt 0:00:29]} 29. f4 {[%emt 0:00:03]} Rc8 {[%emt 0:00:04]} 30. Ra1 {[%emt 0:00:05]} Rc2+ {[%emt 0:00:02]} 31. Kg3 {[%emt 0:00:02]} Nc6 {[%emt 0:00:07]} 32. f5 {[%emt 0:00:08]} exf5 {[%emt 0:00:06]} 33. exf5 {[%emt 0:00:01]} a5 {[%emt 0:00:01]} 34. h4 {[%emt 0:00:06]} Rc3+ {[%emt 0:00:05]} 35. Kg4 {[%emt 0:00:11]} Rc4+ {[%emt 0:00:36]} 36. Kh5 {[%emt 0:00:04]} Ne7 {[%emt 0:00:42]} 37. Rxa5 {[%emt 0:00:12]} Nc6 {[%emt 0:00:37]} 38. Ra6 {[%emt 0:00:06]} Kg7 {[%emt 0:00:45]} 39. Rb6 {[%emt 0:00:02]} Ne5 {[%emt 0:00:18]} 40. Rb7+ {[%emt 0:00:05]} Kg8 {[%emt 0:00:13]} 41. g6 {[%emt 0:00:37]} hxg6+ {[%emt 0:00:28]} 42. fxg6 {[%emt 0:00:01]} Nf3 {[%emt 0:00:26]} 43. Rb8+ {[%emt 0:00:32]} Kg7 {[%emt 0:00:01]} 44. Rb7+ {[%emt 0:00:02]} Kf6 {[%emt 0:00:28]} 45. Rf7+ {[%emt 0:00:11]} Ke6 {[%emt 0:00:01]} 46. Rxf3 {[%emt 0:00:02]} Rc8 {[%emt 0:00:10]} 47. g7 {[%emt 0:00:10]} Rc5+ {[%emt 0:00:03]} 48. Kg6 {[%emt 0:00:01]} 1-0

[Event "11th LCC Rapid 2019"]
[Site "London"]
[Date "2019.12.07"]
[Round "3.16"]
[White "Watson, Jacob"]
[Black "Walker, Samuel A"]
[Result "0-1"]
[WhiteElo "1922"]
[BlackElo "2039"]
[PlyCount "132"]
[EventDate "2019.12.08"]
[EventType "swiss"]
[EventCountry "ENG"]
[TimeControl "15+10"]
[WhiteClock "0:04:41"]
[BlackClock "0:01:04"]

1. d4 {[%emt 0:00:00]} Nf6 {[%emt 0:00:00]} 2. Nf3 {[%emt 0:00:00]} g6 {[%emt 0:00:00]} 3. Bf4 {[%emt 0:00:00]} d5 {[%emt 0:00:00]} 4. e3 {[%emt 0:00:00]} Bg7 {[%emt 0:00:00]} 5. h3 {[%emt 0:00:00]} O-O {[%emt 0:00:00]} 6. Bd3 {[%emt 0:00:00]} c5 {[%emt 0:00:00]} 7. c3 {[%emt 0:00:00]} Qb6 {[%emt 0:00:00]} 8. Qc2 {[%emt 0:00:00]} Nc6 {[%emt 0:00:00]} 9. Nbd2 {[%emt 0:00:00]} c4 {[%emt 0:00:00]} 10. Be2 {[%emt 0:00:00]} Bf5 {[%emt 0:00:00]} 11. Qc1 {[%emt 0:00:00]} Rfc8 {[%emt 0:00:00]} 12. O-O {[%emt 0:00:00]} Qd8 {[%emt 0:00:00]} 13. Ne5 {[%emt 0:00:00]} Nd7 {[%emt 0:00:00]} 14. Nxc6 {[%emt 0:00:00]} Rxc6 {[%emt 0:00:00]} 15. f3 {[%emt 0:00:00]} e5 {[%emt 0:00:00]} 16. dxe5 {[%emt 0:00:00]} Nxe5 {[%emt 0:00:00]} 17. e4 {[%emt 0:00:00]} dxe4 {[%emt 0:00:00]} 18. fxe4 {[%emt 0:00:00]} Be6 {[%emt 0:00:00]} 19. Bxe5 {[%emt 0:00:00]} Bxe5 {[%emt 0:00:00]} 20. Nf3 {[%emt 0:00:00]} Qb6+ {[%emt 0:00:00]} 21. Kh1 {[%emt 0:00:00]} Bg7 {[%emt 0:00:00]} 22. e5 {[%emt 0:00:00]} Rc5 {[%emt 0:00:00]} 23. Qe3 {[%emt 0:00:00]} Rb5 {[%emt 0:00:00]} 24. Qxb6 {[%emt 0:00:00]} axb6 {[%emt 0:00:00]} 25. b3 {[%emt 0:00:00]} Bxe5 {[%emt 0:00:00]} 26. Bxc4 {[%emt 0:00:00]} Bxc4 {[%emt 0:00:00]} 27. bxc4 {[%emt 0:00:00]} Rc5 {[%emt 0:00:00]} 28. Rab1 {[%emt 0:00:00]} Bc7 {[%emt 0:00:00]} 29. Nd2 {[%emt 0:00:00]} Rxa2 {[%emt 0:00:00]} 30. Ne4 {[%emt 0:00:00]} Re5 {[%emt 0:00:00]} 31. Nf6+ {[%emt 0:00:00]} Kg7 {[%emt 0:00:00]} 32. Nd5 {[%emt 0:00:00]} Bb8 {[%emt 0:00:00]} 33. Rbe1 {[%emt 0:00:16]} Rxe1 {[%emt 0:00:00]} 34. Rxe1 {[%emt 0:00:02]} Bg3 {[%emt 0:00:00]} 35. Rf1 {[%emt 0:00:29]} Rb2 {[%emt 0:00:00]} 36. Nb4 {[%emt 0:00:23]} h5 {[%emt 0:00:00]} 37. Nd5 {[%emt 0:00:25]} h4 {[%emt 0:00:00]} 38. Kg1 {[%emt 0:00:12]} b5 {[%emt 0:00:00]} 39. cxb5 {[%emt 0:00:43]} Rxb5 {[%emt 0:00:00]} 40. Ne3 {[%emt 0:00:33]} Rb2 {[%emt 0:00:00]} 41. Rf3 {[%emt 0:00:51]} Rb1+ {[%emt 0:00:00]} 42. Nf1 {[%emt 0:00:04]} Rc1 {[%emt 0:00:00]} 43. Rd3 {[%emt 0:00:13]} b6 {[%emt 0:00:08]} 44. Rf3 {[%emt 0:01:26]} Be5 {[%emt 0:00:38]} 45. Kf2 {[%emt 0:00:47]} Bxc3 {[%emt 0:01:38]} 46. Ne3 {[%emt 0:00:56]} Bd4 {[%emt 0:00:23]} 47. Rf4 {[%emt 0:00:01]} Rc2+ {[%emt 0:00:19]} 48. Kf3 {[%emt 0:00:04]} Bxe3 {[%emt 0:00:20]} 49. Kxe3 {[%emt 0:00:02]} Rxg2 {[%emt 0:00:16]} 50. Rxh4 {[%emt 0:00:02]} Rb2 {[%emt 0:00:18]} 51. Kd3 {[%emt 0:00:07]} Rb3+ {[%emt 0:00:30]} 52. Kc4 {[%emt 0:00:02]} Rb1 {[%emt 0:00:01]} 53. Rd4 {[%emt 0:00:22]} f5 {[%emt 0:00:59]} 54. h4 {[%emt 0:00:21]} Re1 {[%emt 0:00:34]} 55. Kb5 {[%emt 0:00:30]} Re4 {[%emt 0:00:03]} 56. Rd7+ {[%emt 0:00:03]} Kh6 {[%emt 0:00:02]} 57. Kxb6 {[%emt 0:00:24]} Rxh4 {[%emt 0:00:02]} 58. Kc5 {[%emt 0:00:05]} Re4 {[%emt 0:00:02]} 59. Rd2 {[%emt 0:00:06]} g5 {[%emt 0:00:04]} 60. Kd5 {[%emt 0:00:02]} g4 {[%emt 0:00:03]} 61. Rf2 {[%emt 0:00:12]} Kg5 {[%emt 0:00:01]} 62. Rb2 {[%emt 0:00:10]} Re8 {[%emt 0:00:02]} 63. Rb7 {[%emt 0:00:03]} g3 {[%emt 0:00:06]} 64. Rg7+ {[%emt 0:00:04]} Kf4 {[%emt 0:00:01]} 65. Kd4 {[%emt 0:00:07]} Kf3 {[%emt 0:00:03]} 66. Rg5 {[%emt 0:00:04]} f4 {[%emt 0:00:01]} 0-1